{"text_format":"1","workbook":"xlsx","n_sheets":3,"sheets":["écran de saisie","Überblick","Werte"],"not_rendered":{"charts":1,"images":1,"macros":1,"external_links":0,"defined_names":31,"comments":2,"pivot_tables":0},"unopened":[],"bounds":{"document_bytes":16777216,"sheet_cells":100000,"rows_first":2000,"rows_last":500,"rows_between":2000,"halvings":0,"cell_chars":16384,"cell_head_chars":4096},"cells_cut":0,"cells_raw":0,"read":"whole","date_system":"1900"}

{"sheet":"écran de saisie","index":0,"n_rows":35,"n_cols":18,"rows_kept":35,"cut":false,"hidden":false,"merged":[[32,1,32,17],[15,9,15,13],[34,1,34,17],[9,1,11,3]]}
[]
[]
[]
[]
[]
[]
[]
[]
[null,"Évaluation de la valeur des dégâts causés aux arbres routiers"]
[null,"Barème de tarification relatif aux prestations de main d'oeuvre et à la fourniture propre de matériaux par les services de l'Administration des ponts et chaussées"]
[]
[]
[null,"Référence : BATA1-2021-01-v1.0"]
[]
[]
[null,"valeur initiale",null,"situation",null,"circonférence en cm",null,"vitesse de croissance",null,"grade de dégâts",null,null,null,null,null,"coûts du travail",null,"valeur de l‘arbre (sans dommages)"]
[null,null,null,"lieu",null,null,null,null,null,"cime",null,"tronc",null,"racines"]
[null,295,null,null,null,110,null,null,null,0,null,0,null,0,null,0,null,{"$f":"ROUND(IF(Standzeit<=letztes_Jugendjahr,Anfangswert+Standortfaktor*Koeffizient_LN*LN(Standzeit+1),IF(AND(Standzeit>letztes_Jugendjahr,Standzeit<=letztes_Erwachsenenjahr),(Anfangswert+Standortfaktor*Koeffizient_LN*LN(letztes_Jugendjahr+1))+Standortfaktor*(Standzeit-letztes_Jugendjahr)*(Zuwachs_Erwachsenenphase/(letztes_Erwachsenenjahr-letztes_Jugendjahr)),(Anfangswert+Standortfaktor*Koeffizient_LN*LN(letztes_Jugendjahr+1))+Standortfaktor*(letztes_Erwachsenenjahr-letztes_Jugendjahr)*(Zuwachs_Erwachsenenphase/(letztes_Erwachsenenjahr-letztes_Jugendjahr))+Standortfaktor*(Standzeit-letztes_Erwachsenenjahr)*2*(Zuwachs_Erwachsenenphase/(letztes_Erwachsenenjahr-letztes_Jugendjahr)))),2)","v":7414.22}]
[]
[null,null,null,"vitalité",null,"min. 18 (circonférence de la plantation)",null,null,null,"entre 0 et 100",null,"entre 0 et 100",null,"entre 0 et 100",null,"en cas de travaux nécessaires"]
[null,null,null,null,null,null,null,null,null,null,null,null,null,null,null,null,null,"valeur des dégâts"]
[]
[null,null,null,"environnement",null,null,null,null,null,null,null,null,null,null,null,null,null,{"$f":"Wert*(Schaeden_Gesamt)/100","v":0}]
[]
[null,null,null,null,null,null,null,null,null,null,null,null,null,null,null,null,null,"valeur des dégâts avec coûts du travail"]
[]
[null,null,null,null,null,null,null,null,null,null,null,null,null,null,null,null,null,{"$f":"Schadenswert+Arbeitskosten","v":0}]
[]
[]
[]
[null,"service",null,null,null,"nom",null,null,null,"date",null,{"$f":"TODAY()","v":"2022-07-20"},null,null,null,"signature"]
[]
[null," Tant qu'un arbre n'a pas encore poussé, l'évaluation doit prendre la forme d'une restitution in rem. Cela signifie que les dommages résultent des coûts complets de remplacement de l'arbre (enlèvement de l'arbre endommagé, frais de remplacement de l'arbre, frais de plantation, etc.).  Dans ce cas, aucun calcul ne peut être effectué avec le présent tableau Excel!"]
[]
[null,"Les explications des termes s'affichent lorsque vous déplacez le pointeur de la souris sur les triangles rouges."]

{"sheet":"Überblick","index":1,"n_rows":113,"n_cols":23,"rows_kept":113,"cut":false,"hidden":true,"merged":[[11,21,11,22],[5,4,5,8],[6,4,6,8],[5,14,5,18],[6,14,6,18],[7,14,7,18]]}
[]
[null,null,null,null,"Ort",null,"Vitalität",null,"Umgebung",null,null,null,"Umfangszuwachs",null,"Krone",null,"Stamm",null,"Wurzeln"]
[null,null,null,null,{"$f":"INDEX(Faktoren_Standort,Überblick!E4)","v":1},null,{"$f":"INDEX(Faktoren_Vitalitaet,Überblick!G4)","v":1},null,{"$f":"INDEX(Faktoren_Umgebung,Überblick!I4)","v":1},null,null,null,{"$f":"INDEX(Faktoren_Wachstum,Überblick!M4)","v":2.5},null,{"$f":"IF(Krone<=25,Krone,IF(Krone<=30,35,IF(Krone<=35,50,IF(Krone<=40,70,IF(Krone<=45,90,100)))))","v":0},null,{"$f":"IF(Stamm<=25,Stamm,IF(Stamm<=30,35,IF(Stamm<=35,50,IF(Stamm<=40,70,IF(Stamm<=45,90,100)))))","v":0},null,{"$f":"IF(Wurzeln<=25,Wurzeln,IF(Wurzeln<=30,35,IF(Wurzeln<=35,50,IF(Wurzeln<=40,70,IF(Wurzeln<=45,90,100)))))","v":0},null,"letztes Jugendjahr",null,"letztes Erwachsenenjahr"]
[null,null,null,null,1,null,1,null,1,null,null,null,1,null,"zwischen 0 und 100",null,"zwischen 0 und 100",null,"zwischen 0 und 100",null,15,null,80]
[]
[null,null,null,null,"resultierender Standortfaktor",null,null,null,null,null,"Durchmesser in cm",null,"Standzeit in Jahren",null,"Gesamtschaden",null,null,null,null,null,"Koeffizient_LN",null,"Wertzuwachs Erwachsenenphase"]
[null,null,null,null,{"$f":"gewaehlter_Standort*gewaehlte_Vitalitaet*gewaehlte_Umgebung","v":1},null,null,null,null,null,{"$f":"ROUND('écran de saisie'!F18/PI(),0)","v":35},null,{"$f":"(Umfang-18)/gewaehltes_Wachstum","v":36.799999999999997},null,{"$f":"IF(Schaeden_Krone+Schaeden_Stamm+Schaeden_Wurzeln>100,100,Schaeden_Krone+Schaeden_Stamm+Schaeden_Wurzeln)","v":0},null,null,null,null,null,1600,null,8000]
[null,null,null,null,null,null,null,null,null,null,null,null,{"$f":"IF(M7<= 15, \"- Jugendphase -\",IF(M7<=80,\"- Erwachsenenphase -\",\"- Altersphase -\"))","v":"- Erwachsenenphase -"},null,"zwischen 0 und 100"]
[]
[]
[]
[null,null,"Standzeit",null,"Wert",null,null,null,null,null,null,null,null,null,null,null,null,null,null,null,null,"graphische Darstellung der Baumwertkurve"]
[null,null,0,null,{"$f":"ROUND(IF(C13<=letztes_Jugendjahr,Anfangswert+Standortfaktor*Koeffizient_LN*LN(C13+1),IF(AND(C13>letztes_Jugendjahr,C13<=letztes_Erwachsenenjahr),(Anfangswert+Standortfaktor*Koeffizient_LN*LN(letztes_Jugendjahr+1))+Standortfaktor*(C13-letztes_Jugendjahr)*(Zuwachs_Erwachsenenphase/(letztes_Erwachsenenjahr-letztes_Jugendjahr)),(Anfangswert+Standortfaktor*Koeffizient_LN*LN(letztes_Jugendjahr+1))+Standortfaktor*(letztes_Erwachsenenjahr-letztes_Jugendjahr)*(Zuwachs_Erwachsenenphase/(letztes_Erwachsenenjahr-letztes_Jugendjahr))+Standortfaktor*(C13-letztes_Erwachsenenjahr)*2*(Zuwachs_Erwachsenenphase/(letztes_Erwachsenenjahr-letztes_Jugendjahr))))*(100-Schaeden_Gesamt)/100,2)","v":295}]
[null,null,1,null,1404.04]
[null,null,2,null,2052.7800000000002]
[null,null,3,null,2513.0700000000002]
[null,null,4,null,2870.1]
[null,null,5,null,3161.82]
[null,null,6,null,3408.46]
[null,null,7,null,3622.11]
[null,null,8,null,3810.56]
[null,null,9,null,3979.14]
[null,null,10,null,4131.63]
[null,null,11,null,4270.8500000000004]
[null,null,12,null,4398.92]
[null,null,13,null,4517.49]
[null,null,14,null,4627.88]
[null,null,15,null,4731.1400000000003]
[null,null,16,null,4854.22]
[null,null,17,null,4977.3]
[null,null,18,null,5100.37]
[null,null,19,null,5223.45]
[null,null,20,null,5346.53]
[null,null,21,null,5469.6]
[null,null,22,null,5592.68]
[null,null,23,null,5715.76]
[null,null,24,null,5838.83]
[null,null,25,null,5961.91]
[null,null,26,null,6084.99]
[null,null,27,null,6208.07]
[null,null,28,null,6331.14]
[null,null,29,null,6454.22]
[null,null,30,null,6577.3,null,null,null,"Min Stammunfang 18: Was wenn Pflanzstärke 18-20 und Umfang schon 20."]
[null,null,31,null,6700.37,null,null,null,"Schaden % définieren X% von Stammunfang etc?",null,null,"länge/ höhe"]
[null,null,32,null,{"$f":"ROUND(IF(C45<=letztes_Jugendjahr,Anfangswert+Standortfaktor*Koeffizient_LN*LN(C45+1),IF(AND(C45>letztes_Jugendjahr,C45<=letztes_Erwachsenenjahr),(Anfangswert+Standortfaktor*Koeffizient_LN*LN(letztes_Jugendjahr+1))+Standortfaktor*(C45-letztes_Jugendjahr)*(Zuwachs_Erwachsenenphase/(letztes_Erwachsenenjahr-letztes_Jugendjahr)),(Anfangswert+Standortfaktor*Koeffizient_LN*LN(letztes_Jugendjahr+1))+Standortfaktor*(letztes_Erwachsenenjahr-letztes_Jugendjahr)*(Zuwachs_Erwachsenenphase/(letztes_Erwachsenenjahr-letztes_Jugendjahr))+Standortfaktor*(C45-letztes_Erwachsenenjahr)*2*(Zuwachs_Erwachsenenphase/(letztes_Erwachsenenjahr-letztes_Jugendjahr))))*(100-Schaeden_Gesamt)/100,2)","v":6823.45}]
[null,null,33,null,6946.53]
[null,null,34,null,7069.6]
[null,null,35,null,7192.68]
[null,null,36,null,7315.76]
[null,null,37,null,7438.83]
[null,null,38,null,7561.91]
[null,null,39,null,7684.99]
[null,null,40,null,7808.07]
[null,null,41,null,7931.14]
[null,null,42,null,8054.22]
[null,null,43,null,8177.3]
[null,null,44,null,8300.3700000000008]
[null,null,45,null,8423.4500000000007]
[null,null,46,null,8546.5300000000007]
[null,null,47,null,8669.6]
[null,null,48,null,8792.68]
[null,null,49,null,8915.76]
[null,null,50,null,9038.83]
[null,null,51,null,9161.91]
[null,null,52,null,9284.99]
[null,null,53,null,9408.07]
[null,null,54,null,9531.14]
[null,null,55,null,9654.2199999999993]
[null,null,56,null,9777.2999999999993]
[null,null,57,null,9900.3700000000008]
[null,null,58,null,10023.450000000001]
[null,null,59,null,10146.530000000001]
[null,null,60,null,10269.6]
[null,null,61,null,10392.68]
[null,null,62,null,10515.76]
[null,null,63,null,10638.83]
[null,null,64,null,{"$f":"ROUND(IF(C77<=letztes_Jugendjahr,Anfangswert+Standortfaktor*Koeffizient_LN*LN(C77+1),IF(AND(C77>letztes_Jugendjahr,C77<=letztes_Erwachsenenjahr),(Anfangswert+Standortfaktor*Koeffizient_LN*LN(letztes_Jugendjahr+1))+Standortfaktor*(C77-letztes_Jugendjahr)*(Zuwachs_Erwachsenenphase/(letztes_Erwachsenenjahr-letztes_Jugendjahr)),(Anfangswert+Standortfaktor*Koeffizient_LN*LN(letztes_Jugendjahr+1))+Standortfaktor*(letztes_Erwachsenenjahr-letztes_Jugendjahr)*(Zuwachs_Erwachsenenphase/(letztes_Erwachsenenjahr-letztes_Jugendjahr))+Standortfaktor*(C77-letztes_Erwachsenenjahr)*2*(Zuwachs_Erwachsenenphase/(letztes_Erwachsenenjahr-letztes_Jugendjahr))))*(100-Schaeden_Gesamt)/100,2)","v":10761.91}]
[null,null,65,null,10884.99]
[null,null,66,null,11008.07]
[null,null,67,null,11131.14]
[null,null,68,null,11254.22]
[null,null,69,null,11377.3]
[null,null,70,null,11500.37]
[null,null,71,null,11623.45]
[null,null,72,null,11746.53]
[null,null,73,null,11869.6]
[null,null,74,null,11992.68]
[null,null,75,null,12115.76]
[null,null,76,null,12238.83]
[null,null,77,null,12361.91]
[null,null,78,null,12484.99]
[null,null,79,null,12608.07]
[null,null,80,null,12731.14]
[null,null,81,null,12977.3]
[null,null,82,null,13223.45]
[null,null,83,null,13469.6]
[null,null,84,null,13715.76]
[null,null,85,null,13961.91]
[null,null,86,null,14208.07]
[null,null,87,null,14454.22]
[null,null,88,null,14700.37]
[null,null,89,null,14946.53]
[null,null,90,null,15192.68]
[null,null,91,null,15438.83]
[null,null,92,null,15684.99]
[null,null,93,null,15931.14]
[null,null,94,null,16177.3]
[null,null,95,null,16423.45]
[null,null,96,null,16669.599999999999]
[null,null,97,null,16915.759999999998]
[null,null,98,null,17161.91]
[null,null,99,null,17408.07]
[null,null,100,null,17654.22]

{"sheet":"Werte","index":2,"n_rows":5,"n_cols":12,"rows_kept":5,"cut":false,"hidden":true,"merged":[]}
[null,"Standort","Faktor",null,"Wachstum","Faktor",null,"Vitalität","Faktor",null,"Umgebung","Faktor"]
[null,"ville",1,null,"normale",2.5,null,"en bonne santé",1,null,"arbre isolé",1]
[null,"village",0.8,null,"lente",1,null,"affaibli",0.75,null,"arbre d'allée",0.5]
[null,"campagne",0.6,null,"vite",6.3,null,"très affaibli",0.5,null,"arbre d’une rangée 2-5",0.2]
[null,null,null,null,null,null,null,"en mauvaise santé",0.15,null,"arbre d’une rangée >5",0.1]